fUSD/lending_fUSD_20250525
["ID","MTS","AMOUNT","RATE_DAILY","PERIOD"]
[362289055,1748161841297,-420.0,0.00019997,2]
[362289056,1748161841306,-569.08,0.00019997,2]
[362289057,1748161841315,-569.08,0.00019997,2]
[362289058,1748161841325,-569.08,0.00019997,2]
[362289059,1748161841334,-429.75325753,0.00019997,2]
[362289060,1748161841343,-420.0,0.00019997,2]
[362289061,1748161841352,-420.0,0.00019997,2]
[362289062,1748161841361,-420.0,0.00019997,2]
[362289063,1748161841370,-420.0,0.00019997,2]
[362289064,1748161841381,-435.09489298,0.00019997,2]
[362289065,1748161841391,-420.0,0.00019997,2]
[362289066,1748161841402,-420.0,0.00019997,2]
[362289067,1748161841412,-420.0,0.00019997,2]
[362289068,1748161841422,-420.0,0.00019997,2]
[362289069,1748161841431,-420.0,0.00019997,2]
[362289070,1748161841443,-420.0,0.00019997,2]
[362289071,1748161841453,-420.0,0.00019997,2]
[362289072,1748161841462,-420.0,0.00019997,2]
[362289073,1748161841472,-420.0,0.00019997,2]
[362289074,1748161841481,-448.3471975,0.00019997,2]
[362289075,1748161841491,-514.04951722,0.00019997,2]
[362289076,1748161841501,-420.0,0.00019997,2]
[362289077,1748161841511,-420.0,0.00019997,2]
[362289078,1748161841520,-370.0,0.00019997,2]
[362289079,1748161841531,-420.0,0.00019997,2]
[362289080,1748161841540,-420.0,0.00019997,2]
[362289081,1748161841551,-430.07011099,0.00019997,2]
[362289082,1748161841562,-420.0,0.00019997,2]
[362289083,1748161841573,-521.8294532,0.00019997,2]
[362289084,1748161841584,-420.0,0.00019997,2]
[362289085,1748161841594,-420.0,0.00019997,2]
[362289086,1748161841604,-420.0,0.00019997,2]
[362289087,1748161841614,-420.0,0.00019997,2]
[362289088,1748161841624,-420.0,0.00019997,2]
[362289089,1748161841634,-420.0,0.00019997,2]
[362289090,1748161841645,-451.39949907,0.00019997,2]
[362289091,1748161841655,-420.0,0.00019997,2]
[362289092,1748161841666,-420.0,0.00019997,2]
[362289093,1748161841676,-443.0,0.00019997,2]
[362289094,1748161841687,-420.0,0.00019997,2]
[362289095,1748161841697,-429.70074802,0.00019997,2]
[362289096,1748161841707,-153.52269624,0.00019997,2]
[362289097,1748161841719,-420.0,0.00019997,2]
[362289098,1748161841729,-150.0,0.00019997,2]
[362289099,1748161841738,-153.61841918,0.00019997,2]
[362289100,1748161841747,-420.0,0.00019997,2]
[362289101,1748161841757,-432.71895564,0.00019997,2]
[362289102,1748161841766,-420.0,0.00019997,2]
[362289103,1748161841777,-420.0,0.00019997,2]
[362289104,1748161841788,-420.0,0.00019997,2]
[362289105,1748161841798,-441.01375068,0.00019997,2]
[362289106,1748161841807,-437.56001144,0.00019997,2]
[362289107,1748161841817,-420.0,0.00019997,2]
[362289108,1748161841827,-429.96875676,0.00019997,2]
[362289109,1748161841837,-179.94035228,0.00019997,2]
[362289110,1748161841848,-420.0,0.00019997,2]
[362289111,1748161841858,-449.10016462,0.00019997,2]
[362289112,1748161841869,-500.0,0.00019997,2]
[362289113,1748161841877,-440.31182565,0.00019997,2]
[362289114,1748161841887,-447.02565083,0.00019997,2]
[362289115,1748161841895,-424.92926523,0.00019997,2]
[362289116,1748161841905,-431.64563872,0.00019997,2]
[362289117,1748161841914,-434.7546711,0.00019997,2]
[362289118,1748161841923,-428.94107733,0.00019997,2]
[362289119,1748161841933,-420.0,0.00019997,2]
[362289120,1748161841942,-420.0,0.00019997,2]
[362289121,1748161841951,-420.0,0.00019997,2]
[362289122,1748161841962,-420.0,0.00019997,2]
[362289123,1748161841974,-427.57183588,0.00019997,2]
[362289124,1748161841983,-454.41548751,0.00019997,2]
[362289125,1748161841992,-427.22468896,0.00019997,2]
[362289126,1748161842002,-420.0,0.00019997,2]
[362289127,1748161842011,-427.5549772,0.00019997,2]
[362289128,1748161842022,-420.0,0.00019997,2]
[362289129,1748161842031,-427.00280854,0.00019997,2]
[362289130,1748161842039,-429.66479471,0.00019997,2]
[362289131,1748161842049,-422.05055486,0.00019997,2]
[362289132,1748161842058,-420.0,0.00019997,2]
[362289133,1748161842067,-420.0,0.00019997,2]
[362289134,1748161842076,-420.0,0.00019997,2]
[362289135,1748161842085,-430.38041885,0.00019997,2]
[362289136,1748161842094,-425.98844371,0.00019997,2]
[362289137,1748161842104,-420.0,0.00019997,2]
[362289138,1748161842113,-420.0,0.00019997,2]
[362289139,1748161842122,-495.16,0.00019997,2]
[362289140,1748161842132,-495.16,0.00019997,2]
[362289141,1748161842141,-495.16,0.00019997,2]
[362289142,1748161842150,-439.14884243,0.00019997,2]
[362289143,1748161842159,-420.0,0.00019997,2]
[362289144,1748161842170,-422.7499065,0.00019997,2]
[362289145,1748161842179,-420.0,0.00019997,2]
[362289146,1748161842188,-423.24395329,0.00019997,2]
[362289147,1748161842197,-448.70037304,0.00019997,2]
[362289148,1748161842208,-402.67268739,0.00019997,2]
[362289149,1748161842220,-420.0,0.00019997,2]
[362289150,1748161842230,-432.1392372,0.00019997,2]
[362289151,1748161842239,-452.76838944,0.00019997,2]
[362289152,1748161842249,-453.43292248,0.00019997,2]
[362289153,1748161842258,-435.9277318,0.00019997,2]
[362289154,1748161842268,-420.0,0.00019997,2]
[362289155,1748161842277,-438.86573883,0.00019997,2]
[362289156,1748161842288,-425.95245383,0.00019997,2]
[362289157,1748161842297,-420.0,0.00019997,2]
[362289158,1748161842306,-345.40019395,0.00019997,2]
[362289159,1748161842316,-430.59015749,0.00019997,2]
[362289160,1748161842325,-426.50384209,0.00019997,2]
[362289161,1748161842334,-436.68656583,0.00019997,2]
[362289162,1748161842344,-448.03045556,0.00019997,2]
[362289163,1748161842354,-429.0605617,0.00019997,2]
[362289164,1748161842363,-420.0,0.00019997,2]
[362289165,1748161842372,-420.0,0.00019997,2]
[362289166,1748161842382,-420.0,0.00019997,2]
[362289167,1748161842391,-420.0,0.00019997,2]
[362289168,1748161842401,-430.58652548,0.00019997,2]
[362289169,1748161842409,-420.0,0.00019997,2]
[362289170,1748161842419,-420.0,0.00019997,2]
[362289171,1748161842428,-420.0,0.00019997,2]
[362289172,1748161842439,-424.90444094,0.00019997,2]
[362289173,1748161842448,-431.01608842,0.00019997,2]
[362289174,1748161842457,-420.0,0.00019997,2]
[362289176,1748161842466,-423.41975645,0.00019997,2]
[362289177,1748161842476,-423.94981702,0.00019997,2]
[362289178,1748161842485,-420.0,0.00019997,2]
[362289179,1748161842495,-431.90293578,0.00019997,2]
[362289180,1748161842504,-428.35679171,0.00019997,2]
[362289181,1748161842513,-434.80336701,0.00019997,2]
[362289182,1748161842522,-425.13984757,0.00019997,2]
[362289183,1748161842531,-209.16437689,0.00019997,2]
[362289184,1748161842541,-420.0,0.00019997,2]
[362289185,1748161842550,-420.0,0.00019997,2]
[362289186,1748161842559,-420.0,0.00019997,2]
[362289187,1748161842568,-420.0,0.00019997,2]
[362289188,1748161842578,-420.0,0.00019997,2]
[362289189,1748161842587,-420.0,0.00019997,2]
[362289190,1748161842596,-493.98163502,0.00019997,2]
[362289191,1748161842606,-433.04191655,0.00019997,2]
[362289192,1748161842615,-420.0,0.00019997,2]
[362289193,1748161842624,-420.0,0.00019997,2]
[362289194,1748161842634,-431.49438882,0.00019997,2]
[362289195,1748161842643,-420.0,0.00019997,2]
[362289196,1748161842652,-429.76015353,0.00019997,2]
[362289197,1748161842661,-420.0,0.00019997,2]
[362289198,1748161842671,-420.0,0.00019997,2]
[362289199,1748161842680,-420.0,0.00019997,2]
[362289200,1748161842689,-420.0,0.00019997,2]
[362289201,1748161842698,-420.0,0.00019997,2]
[362289202,1748161842708,-420.0,0.00019997,2]
[362289203,1748161842717,-420.0,0.00019997,2]
[362289204,1748161842727,-420.0,0.00019997,2]
[362289205,1748161842736,-872.17,0.00019997,2]
[362289206,1748161842746,-872.17,0.00019997,2]
[362289207,1748161842755,-872.17,0.00019997,2]
[362289208,1748161842764,-424.80518578,0.00019997,2]
[362289209,1748161842773,-420.0,0.00019997,2]
[362289210,1748161842782,-420.0,0.00019997,2]
[362289211,1748161842792,-439.32286037,0.00019997,2]
[362289212,1748161842801,-346.03803955,0.00019997,2]
[362289213,1748161842811,-420.0,0.00019997,2]
[362289214,1748161842820,-426.43094959,0.00019997,2]
[362289215,1748161842830,-420.0,0.00019997,2]
[362289216,1748161842839,-401.55571921,0.00019997,2]
[362289217,1748161842848,-437.72,0.00019997,2]
[362289218,1748161842857,-437.72,0.00019997,2]
[362289219,1748161842867,-437.72,0.00019997,2]
[362289220,1748161842876,-420.0,0.00019997,2]
[362289221,1748161842886,-420.0,0.00019997,2]
[362289222,1748161842895,-2087.56,0.00019997,2]
[362289223,1748161842905,-2087.56,0.00019997,2]
[362289224,1748161842915,-2087.56,0.00019997,2]
[362289225,1748161842923,-420.0,0.00019997,2]
[362289226,1748161842932,-420.0,0.00019997,2]
[362289227,1748161842942,-420.0,0.00019997,2]
[362289228,1748161842951,-420.0,0.00019997,2]
[362289229,1748161842960,-420.0,0.00019997,2]
[362289230,1748161842970,-420.0,0.00019997,2]
[362289231,1748161842980,-420.0,0.00019997,2]
[362289232,1748161842989,-420.0,0.00019997,2]
[362289233,1748161842998,-551.54773796,0.00019997,2]
[362289234,1748161843007,-440.2163627,0.00019997,2]
[362289235,1748161843016,-545.28169242,0.00019997,2]
[362289236,1748161843026,-420.0,0.00019997,2]
[362289238,1748161843035,-420.0,0.00019997,2]
[362289240,1748161843044,-420.0,0.00019997,2]
[362289241,1748161843053,-420.0,0.00019997,2]
[362289242,1748161843062,-561.31805234,0.00019997,2]
[362289243,1748161843071,-2407.38,0.00019997,2]
[362289244,1748161843082,-2407.38,0.00019997,2]
[362289245,1748161843092,-1058.66,0.00019997,2]
[362289246,1748161843101,-2407.38,0.00019997,2]
[362289247,1748161843110,-1058.66,0.00019997,2]
[362289248,1748161843119,-1058.66,0.00019997,2]
[362289250,1748161843129,-455.37344109,0.00019997,2]
[362289253,1748161843138,-465.44439357,0.00019997,2]
[362289254,1748161843147,-637.78,0.00019997,2]
[362289255,1748161843157,-456.52316079,0.00019997,2]
[362289256,1748161843166,-182.20552981,0.00019997,2]
[362289257,1748161843175,-446.74184472,0.00019997,2]
[362289258,1748161843184,-2373.21,0.00019997,2]
[362289259,1748161843193,-2373.21,0.00019997,2]
[362289260,1748161843203,-486.0631255,0.00019997,2]
[362289261,1748161843215,-2373.21,0.00019997,2]
[362289262,1748161843224,-420.0,0.00019997,2]
[362289263,1748161843233,-420.0,0.00019997,2]
[362289264,1748161843242,-420.0,0.00019997,2]
[362289265,1748161843252,-420.0,0.00019997,2]
[362289266,1748161843262,-420.0,0.00019997,2]
[362289267,1748161843272,-469.86241709,0.00019997,2]
[362289268,1748161843282,-420.0,0.00019997,2]
[362289269,1748161843292,-420.0,0.00019997,2]
[362289270,1748161843302,-420.0,0.00019997,2]
[362289271,1748161843311,-420.0,0.00019997,2]
[362289272,1748161843321,-566.83291003,0.00019997,2]
[362289273,1748161843330,-427.04735708,0.00019997,2]
[362289274,1748161843339,-420.0,0.00019997,2]
[362289275,1748161843349,-714.69,0.00019997,2]
[362289276,1748161843358,-714.69,0.00019997,2]
[362289277,1748161843368,-714.69,0.00019997,2]
[362289278,1748161843377,-420.0,0.00019997,2]
[362289279,1748161843386,-420.0,0.00019997,2]
[362289280,1748161843395,-433.38140389,0.00019997,2]
[362289281,1748161843404,-420.0,0.00019997,2]
[362289282,1748161843414,-420.0,0.00019997,2]
[362289283,1748161843423,-442.01524132,0.00019997,2]
[362289284,1748161843432,-420.0,0.00019997,2]
[362289285,1748161843441,-420.0,0.00019997,2]
[362289286,1748161843450,-420.0,0.00019997,2]
[362289287,1748161843460,-420.0,0.00019997,2]
[362289288,1748161843469,-420.0,0.00019997,2]
[362289289,1748161843479,-424.57889349,0.00019997,2]
[362289290,1748161843488,-420.0,0.00019997,2]
[362289291,1748161843497,-1093.19,0.00019997,2]
[362289292,1748161843507,-1093.19,0.00019997,2]
[362289293,1748161843516,-1093.19,0.00019997,2]
[362289294,1748161843525,-431.40598089,0.00019997,2]
[362289295,1748161843534,-553.76,0.00019997,2]
[362289296,1748161843543,-420.0,0.00019997,2]
[362289297,1748161843552,-470.14210803,0.00019997,2]
[362289298,1748161843561,-420.0,0.00019997,2]
[362289299,1748161843570,-420.0,0.00019997,2]
[362289300,1748161843579,-420.0,0.00019997,2]
[362289301,1748161843588,-422.29786945,0.00019997,2]
[362289302,1748161843597,-332.26341161,0.00019997,2]
[362289303,1748161843605,-420.0,0.00019997,2]
[362289304,1748161843615,-904.41,0.00019997,2]
[362289305,1748161843624,-904.41,0.00019997,2]
[362289306,1748161843632,-904.41,0.00019997,2]
[362289307,1748161843641,-499.75,0.00019997,2]
[362289308,1748161843650,-420.0,0.00019997,2]
[362289310,1748161843659,-420.0,0.00019997,2]
[362289312,1748161843669,-420.0,0.00019997,2]
[362289314,1748161843677,-420.0,0.00019997,2]
[362289316,1748161843686,-420.0,0.00019997,2]
[362289317,1748161843695,-420.0,0.00019997,2]
[362289318,1748161843704,-420.0,0.00019997,2]
[362289319,1748161843713,-1055.07,0.00019997,2]
[362289320,1748161843722,-1055.07,0.00019997,2]
[362289321,1748161843731,-1055.07,0.00019997,2]
[362289322,1748161843740,-420.0,0.00019997,2]
[362289323,1748161843750,-420.0,0.00019997,2]
[362289324,1748161843759,-239.10671705,0.00019997,2]
[362289325,1748161843768,-206.14769889,0.00019997,2]
[362289326,1748161843777,-501.40658506,0.00019997,2]
[362289327,1748161843786,-444.10816317,0.00019997,2]
[362289328,1748161843796,-420.0,0.00019997,2]
[362289329,1748161843806,-420.0,0.00019997,2]
[362289330,1748161843815,-420.0,0.00019997,2]
[362289331,1748161843825,-420.0,0.00019997,2]
[362289332,1748161843834,-420.0,0.00019997,2]
[362289333,1748161843843,-420.0,0.00019997,2]
[362289334,1748161843852,-420.0,0.00019997,2]
[362289335,1748161843861,-420.0,0.00019997,2]
[362289336,1748161843870,-420.0,0.00019997,2]
[362289337,1748161843879,-456.23582923,0.00019997,2]
[362289338,1748161843888,-454.53420354,0.00019997,2]
[362289339,1748161843897,-420.0,0.00019997,2]
[362289340,1748161843907,-420.0,0.00019997,2]
[362289341,1748161843916,-2096.3,0.00019997,2]
[362289342,1748161843925,-420.0,0.00019997,2]
[362289343,1748161843934,-420.0,0.00019997,2]
[362289344,1748161843943,-420.0,0.00019997,2]
[362289345,1748161843953,-473.67720419,0.00019997,2]
[362289346,1748161843962,-420.0,0.00019997,2]
[362289347,1748161843971,-199.75090268,0.00019997,2]
[362289348,1748161843981,-1410.46,0.00019997,2]
[362289349,1748161843991,-1410.46,0.00019997,2]
[362289350,1748161844000,-1410.46,0.00019997,2]
[362289351,1748161844010,-420.0,0.00019997,2]
[362289352,1748161844019,-420.0,0.00019997,2]
[362289353,1748161844028,-173.89787258,0.00019997,2]
[362289354,1748161844037,-850.3,0.00019997,2]
[362289355,1748161844046,-420.0,0.00019997,2]
[362289356,1748161844055,-420.0,0.00019997,2]
[362289357,1748161844064,-426.04,0.00019997,2]
[362289358,1748161844074,-420.0,0.00019997,2]
[362289359,1748161844083,-420.0,0.00019997,2]
[362289360,1748161844092,-420.0,0.00019997,2]
[362289361,1748161844102,-530.69206869,0.00019997,2]
[362289362,1748161844112,-420.0,0.00019997,2]
[362289363,1748161844121,-470.60791826,0.00019997,2]
[362289364,1748161844131,-252.32576363,0.00019997,2]
[362289365,1748161844140,-552.76,0.00019997,2]
[362289366,1748161844149,-420.0,0.00019997,2]
[362289367,1748161844159,-420.0,0.00019997,2]
[362289368,1748161844168,-420.0,0.00019997,2]
[362289369,1748161844177,-420.0,0.00019997,2]
[362289370,1748161844187,-420.0,0.00019997,2]
[362289371,1748161844196,-420.0,0.00019997,2]
[362289372,1748161844206,-437.68762148,0.00019997,2]
[362289373,1748161844218,-420.0,0.00019997,2]
[362289374,1748161844227,-155.61600896,0.00019997,2]
[362289375,1748161844237,-646.67,0.00019997,2]
[362289376,1748161844246,-420.0,0.00019997,2]
[362289377,1748161844256,-420.0,0.00019997,2]
[362289378,1748161844266,-515.80629625,0.00019997,2]
[362289379,1748161844275,-420.0,0.00019997,2]
[362289380,1748161844284,-182.80713278,0.00019997,2]
[362289381,1748161844295,-420.0,0.00019997,2]
[362289382,1748161844305,-420.0,0.00019997,2]
[362289383,1748161844314,-420.0,0.00019997,2]
[362289384,1748161844323,-420.0,0.00019997,2]
[362289385,1748161844333,-420.0,0.00019997,2]
[362289386,1748161844342,-420.0,0.00019997,2]
[362289387,1748161844352,-474.97641517,0.00019997,2]
[362289388,1748161844361,-420.0,0.00019997,2]
[362289389,1748161844371,-420.0,0.00019997,2]
[362289390,1748161844380,-420.0,0.00019997,2]
[362289391,1748161844389,-420.0,0.00019997,2]
[362289392,1748161844398,-420.0,0.00019997,2]
[362289393,1748161844408,-420.0,0.00019997,2]
[362289394,1748161844590,-420.0,0.00019997,2]
[362289395,1748161844600,-420.0,0.00019997,2]
[362289396,1748161844610,-420.0,0.00019997,2]
[362289397,1748161844620,-420.0,0.00019997,2]
[362289398,1748161844629,-1402.04,0.00019997,2]
[362289399,1748161844639,-539.0,0.00019998,2]
[362289400,1748161844649,-279.71252305,0.00019998,2]
[362289401,1748161844658,-319140.23900245,0.00019998,2]
[362289402,1748161844681,-2289.99999,0.00019998,2]
[362289403,1748161844839,-13734.01201631,0.000198,2]
[362289404,1748161844855,-11929.34750335,0.000198,2]
[362289405,1748161844886,151.91,0.0001338,7]
[362289407,1748161845709,-385.0,0.000198,2]
[362289427,1748161874633,236.20607842,0.00013699,2]
[362289428,1748161874656,157.34392158,0.00013699,2]
[362289430,1748161920981,820.55074032,0.00018,7]
[362289433,1748162119024,-608.32,0.00018928,2]
[362289434,1748162119049,-298.93,0.00018965,2]
[362289435,1748162119076,-150.0,0.00019052,2]
[362289436,1748162164431,442.75,0.00018937,2]
[362289437,1748162164457,1500.0,0.00018937,2]
[362289438,1748162166034,250.0,0.00015,2]
[362289439,1748162167106,184.6225684,0.00017,2]
[362289440,1748162168712,-115.3774316,0.00017,2]
[362289441,1748162231801,-231.31,0.0001893,2]
[362289442,1748162231828,-1268.69,0.00018937,2]
[362289444,1748162269383,-1000.0,0.00018926,2]
[362289445,1748162269409,-500.0,0.00018937,2]
[362289446,1748162270696,-1500.0,0.00018937,2]
[362289447,1748162271622,-1500.0,0.00018937,2]
[362289448,1748162278795,-500.0,0.00018937,2]
[362289449,1748162351229,-1543.0,0.000189,5]
[362289451,1748162483586,-197.96847172,0.00018837,2]
[362289452,1748162483611,-334.05,0.00018865,2]
[362289453,1748162483637,-300.0,0.00018932,2]
[362289454,1748162483663,-16387.98152828,0.00018933,2]
[362289455,1748162503564,3000.0,0.00025,60]
[362289458,1748162542194,150.0,1e-08,2]
[362289460,1748162585668,-259.30153083,0.00016962,2]
[362289461,1748162587784,-200.0,0.00016962,2]
[362289462,1748162590592,-33.59846917,0.00016962,2]
[362289464,1748162831137,-197.67,0.00018892,2]
[362289465,1748162831158,-412.19355074,0.00018905,2]
[362289468,1748163014902,230.68048657,0.00013699,2]
[362289469,1748163014925,154.72951343,0.00013699,2]
[362289470,1748163018311,-200.0,0.000191,6]
[362289472,1748163028133,-168.85,0.00018711,2]
[362289473,1748163028168,-250.0,0.00018808,2]
[362289474,1748163028203,-258.72665337,0.0001881,2]
[362289475,1748163028235,-666.81783959,0.00018905,2]
[362289476,1748163028247,-168.85,0.00018905,2]
[362289477,1748163028258,-250.0,0.00018905,2]
[362289478,1748163028274,-258.72665337,0.00018905,2]
[362289479,1748163028285,-5930.2519563,0.00018905,2]
[362289480,1748163028294,-312.57,0.00018906,2]
[362289481,1748163028304,-735.20689737,0.00018922,2]
[362289490,1748163031832,-448.62310263,0.00018922,2]
[362289491,1748163031845,-300.0,0.00018932,2]
[362289492,1748163031856,-5832.12847172,0.00018933,2]
[362289493,1748163031867,-3355.46186482,0.00018937,2]
[362289494,1748163032098,-411.74813518,0.00018937,2]
[362289495,1748163032109,-191.0,0.00018952,2]
[362289496,1748163032120,-500.0,0.00018953,2]
[362289497,1748163032130,-350.0,0.00019,2]
[362289498,1748163032140,-302.0,0.00019052,2]
[362289499,1748163032151,-500.0,0.000192,7]
[362289500,1748163032161,-453.54,0.000192,2]
[362289501,1748163032171,-325.5,0.000192,2]
[362289503,1748163032182,-453.54,0.000192,2]
[362289504,1748163032192,-170.2,0.000192,2]
[362289506,1748163032203,-453.54,0.000192,2]
[362289509,1748163032214,-453.54,0.000192,2]
[362289511,1748163032226,-170.2,0.000192,2]
[362289513,1748163032238,-152.0,0.00019222,3]
[362289515,1748163032249,-492.9,0.00019226,2]
[362289517,1748163032261,-3000.0,0.000193,2]
[362289518,1748163032272,-700.0,0.000193,7]
[362289519,1748163032283,-1000.0,0.000194,7]
[362289520,1748163032294,-156.0,0.00019488,2]
[362289522,1748163032311,-207.4,0.00019488,2]
[362289523,1748163032327,-154.78625474,0.00019488,2]
[362289524,1748163032342,-1199.20597015,0.00019488,2]
[362289525,1748163032355,-152.55730728,0.00019488,2]
[362289526,1748163032366,-677.57826705,0.00019488,2]
[362289527,1748163032377,-668.65185757,0.00019488,2]
[362289528,1748163032388,-151.0,0.00019488,2]
[362289529,1748163032399,-7965.11220803,0.000195,2]
[362289543,1748163039986,-374.63559559,0.000195,2]
[362289545,1748163042519,-4603.15058224,0.000195,2]
[362289547,1748163042532,-405.61620503,0.000195,2]
[362289548,1748163042544,-2334.20152592,0.000195,2]
[362289549,1748163042640,-13.97037092,0.000195,2]
[362289550,1748163042653,-2110.26351227,0.000195,2]
[362289551,1748163042663,-6563.61306303,0.000195,2]
[362289552,1748163042675,-3703.71693697,0.000195,2]
[362289553,1748163042685,-1200.0,0.000195,7]
[362289554,1748163042694,-503.0,0.00019534,2]
[362289555,1748163042703,-806.0,0.00019589,2]
[362289556,1748163042714,-236.900133,0.00019598,2]
[362289557,1748163042723,-500.0,0.00019599,2]
[362289558,1748163042733,-500.0,0.00019599,2]
[362289559,1748163042742,-500.0,0.00019599,2]
[362289560,1748163042752,-500.0,0.00019599,2]
[362289562,1748163042766,-372.67008147,0.00019599,2]
[362289564,1748163042775,-500.0,0.00019599,2]
[362289565,1748163042785,-500.0,0.00019599,2]
[362289566,1748163042794,-500.0,0.00019599,2]
[362289567,1748163042807,-187.77464484,0.00019599,2]
[362289568,1748163042818,-453.54,0.000196,2]
[362289569,1748163042828,-200.0,0.000196,7]
[362289570,1748163042839,-200.0,0.000197,7]
[362289571,1748163042850,-200.0,0.000198,7]
[362289572,1748163042859,-31555.4996087,0.000198,2]
[362289573,1748163042868,-3352.9041,0.00019873,2]
[362289574,1748163042877,-152.80254903,0.00019873,2]
[362289575,1748163042887,-152.80254902,0.00019878,2]
[362289576,1748163042897,-35171.09428196,0.0001988,2]
[362289577,1748163042906,-152.80254902,0.00019884,2]
[362289578,1748163042916,-152.80254902,0.00019889,2]
[362289579,1748163042926,-152.80254902,0.00019895,2]
[362289580,1748163042935,-163.08576055,0.00019895,2]
[362289581,1748163042944,-195.7019,0.00019896,2]
[362289582,1748163042954,-5000.0,0.00019896,2]
[362289583,1748163042963,-2337.53774519,0.00019896,2]
[362289584,1748163042972,-2337.53774513,0.00019896,2]
[362289585,1748163042981,-2337.53774513,0.00019897,2]
[362289586,1748163042990,-703.24481227,0.00019897,2]
[362289587,1748163043000,-2337.53774513,0.00019897,2]
[362289588,1748163043009,-2337.53774513,0.00019898,2]
[362289589,1748163043018,-251.77469652,0.00019898,2]
[362289591,1748163043027,-2337.53774513,0.00019898,2]
[362289593,1748163043036,-2337.53774513,0.00019899,2]
[362289594,1748163043045,-2337.53774513,0.00019899,2]
[362289595,1748163043054,-2337.53774513,0.000199,2]
[362289596,1748163043065,-453.54,0.000199,2]
[362289597,1748163043074,-2337.53774513,0.000199,2]
[362289598,1748163043084,-200.0,0.000199,7]
[362289600,1748163043093,-222.2106324,0.000199,2]
[362289601,1748163043102,-694.07968606,0.000199,2]
[362289602,1748163043111,-152.80254902,0.000199,2]
[362289603,1748163043121,-1000.0,0.0001995,2]
[362289604,1748163043131,-50631.0,0.00019973,2]
[362289605,1748163043140,-501.09475086,0.00019973,2]
[362289606,1748163043149,-23996.0,0.00019973,2]
[362289607,1748163043158,-341.70552426,0.00019973,2]
[362289608,1748163043169,-500.0,0.00019973,2]
[362289609,1748163043178,-500.0,0.00019973,2]
[362289610,1748163043187,-500.0,0.00019973,2]
[362289611,1748163043196,-267.37477981,0.00019973,2]
[362289612,1748163043206,-222.29,0.00019985,2]
[362289613,1748163043215,-666.54434881,0.00019987,2]
[362289614,1748163043224,-558.226,0.00019988,2]
[362289615,1748163043233,-666.54434881,0.0001999,2]
[362289616,1748163043242,-666.54434881,0.0001999,2]
[362289617,1748163043252,-159.42560429,0.00019994,2]
[362289619,1748163043261,-250.64136477,0.00019994,2]
[362289621,1748163043270,-225.06474847,0.00019994,2]
[362289623,1748163043279,-420.0,0.00019994,2]
[362289625,1748163043289,-420.0,0.00019994,2]
[362289627,1748163043298,-420.0,0.00019994,2]
[362289629,1748163043306,-420.0,0.00019994,2]
[362289630,1748163043316,-420.0,0.00019994,2]
[362289631,1748163043325,-540.15001831,0.00019994,2]
[362289632,1748163043335,-420.0,0.00019994,2]
[362289633,1748163043345,-420.0,0.00019994,2]
[362289634,1748163043354,-420.0,0.00019994,2]
[362289635,1748163043363,-420.0,0.00019994,2]
[362289636,1748163043372,-420.0,0.00019994,2]
[362289637,1748163043382,-420.0,0.00019994,2]
[362289638,1748163043391,-420.0,0.00019994,2]
[362289639,1748163043401,-420.0,0.00019994,2]